{"text_format":"1","workbook":"xlsx","n_sheets":2,"sheets":["seer","Rsd"],"not_rendered":{"charts":0,"images":0,"macros":1,"external_links":0,"defined_names":0,"comments":0,"pivot_tables":0},"unopened":[],"bounds":{"document_bytes":16777216,"sheet_cells":100000,"rows_first":2000,"rows_last":500,"rows_between":2000,"halvings":0,"cell_chars":16384,"cell_head_chars":4096},"cells_cut":0,"cells_raw":0,"read":"whole","date_system":"1900"}

{"sheet":"seer","index":0,"n_rows":24,"n_cols":33,"rows_kept":24,"cut":false,"hidden":false,"merged":[[4,31,7,31],[8,31,11,31],[12,31,15,31],[16,31,19,31],[20,31,23,31],[4,32,5,32],[8,32,9,32],[12,32,13,32],[16,32,17,32],[20,32,21,32],[4,29,4,30],[4,0,7,0],[4,1,7,1],[4,2,7,2],[4,3,7,3],[4,27,4,28],[12,3,15,3],[12,27,12,28],[8,29,8,30],[8,0,11,0],[8,1,11,1],[8,2,11,2],[8,3,11,3],[8,27,8,28],[12,29,12,30],[12,0,15,0],[12,1,15,1],[12,2,15,2],[0,0,0,32],[1,0,2,0],[1,1,2,1],[1,2,2,2],[1,3,2,3],[1,23,1,25],[1,27,1,30],[1,32,2,32],[2,27,2,28],[2,29,2,30],[1,31,2,31],[16,29,16,30],[20,29,20,30],[16,0,19,0],[16,1,19,1],[20,0,23,0],[20,1,23,1],[20,2,23,2],[20,3,23,3],[20,27,20,28],[16,2,19,2],[16,3,19,3],[16,27,16,28]]}
[]
["م","رقـــم الجلــوس","الاســـــــــــــــــــم","ارشـــــاد النتيجـــة","ماده1","ماده2","ماده3","ماده4","ماده5","ماده6","ماده7","ماده8","ماده9","ماده10","ماده11","ماده12","ماده13","ماده14","ماده15","ماده16","ماده17","ماده18","ماده19","مادة20",null,null,null,null,null,null,null,"ملاحظات التيسير","ملاحظات"]
[null,null,null,null,100,100,100,100,150,150,150,150,150,100,100,100,100,100,100,150,150,150,150,50,50,100]
[null,null,null,null,50,50,50,50,75,75,75,75,75,50,50,50,50,50,50,75,75,75,75,"شفوي","تحريري",50]
[1,500,"طالب1",null,25,26,27,28,29,30,31,32,33,34,35,36,37,38,39,40,41,42,43,44,45,{"$f":"SUM(X5:Y5)","v":89},null,null,null,null,null,null,{"$f":"IFERROR(COUNTIFMultiple(E8:Z8,AC6,AE6),\"\")","v":""}]
[]
[null,null,null,null,null,null,null,null,null,null,null,null,null,null,null,null,null,null,null,null,null,null,null,null,null,null,null,null,null,null,null,null,{"$f":"IFERROR(IF(AA5=1556,4,IF(AA5=1557,3,IF(AA5=1558,2,IF(AA5=1559,1,IF(AA5=1796,4,IF(AA5=1797,3,IF(AA5=1798,2,IF(AA5=1799,1,IF(AA5=2036,4,IF(AA5=2037,3,IF(AA5=2038,2,IF(AA5=2039,1,\"\")))))))))))),\"\")","v":""}]
[null,null,null,null,null,null,null,null,null,null,null,null,null,null,null,null,null,null,null,null,null,null,null,null,null,null,null,null,null,null,null,null,{"$f":"IFERROR(IF(AA5=1556,\"درجه تم الإستفاده منها في المجموع الكلي\",IF(AA5=1557,\"درجه تم الإستفاده منها في المجموع الكلي\",IF(AA5=1558,\"درجه تم الإستفاده منها في المجموع الكلي\",IF(AA5=1559,\"درجه تم الإستفاده منها في المجموع الكلي\",IF(AA5=1796,\"درجة تم الإستفاده منها في المجموع الكلي\",IF(AA5=1797,\"درجة تم الإستفاده منها في المجموع الكلي\",IF(AA5=1798,\"درجة تم الإستفاده منها في المجموع الكلي\",IF(AA5=1799,\"درجة تم الإستفاده منها في المجموع الكلي\",IF(AA5=2036,\"درجه تم الإستفادة منها في المجموع الكلي\",IF(AA5=2037,\"درجه تم الإستفادة منها في المجموع الكلي\",IF(AA5=2038,\"درجه تم الإستفادة منها في المجموع الكلي\",IF(AA5=2039,\"درجه تم الإستفادة منها في المجموع الكلي\",\"\")))))))))))),\"\")","v":""}]
[2,501,"طالب2",null,null,null,null,null,null,null,null,null,null,null,null,null,null,null,null,null,null,null,null,null,null,{"$f":"SUM(X9:Y9)","v":0},null,null,null,null,null,null,{"$f":"COUNTIFMultiple(E12:Z12)","v":{"$error":"#NAME?"}}]
[]
[null,null,null,null,null,null,null,null,null,null,null,null,null,null,null,null,null,null,null,null,null,null,null,null,null,null,null,null,null,null,null,null,{"$f":"IFERROR(IF(AA9=1556,4,IF(AA9=1557,3,IF(AA9=1558,2,IF(AA9=1559,1,IF(AA9=1796,4,IF(AA9=1797,3,IF(AA9=1798,2,IF(AA9=1799,1,IF(AA9=2036,4,IF(AA9=2037,3,IF(AA9=2038,2,IF(AA9=2039,1,\"\")))))))))))),\"\")","v":""}]
[null,null,null,null,null,null,null,null,null,null,null,null,null,null,null,null,null,null,null,null,null,null,null,null,null,null,null,null,null,null,null,null,{"$f":"IFERROR(IF(AA9=1556,\"درجه تم الإستفاده منها في المجموع الكلي\",IF(AA9=1557,\"درجه تم الإستفاده منها في المجموع الكلي\",IF(AA9=1558,\"درجه تم الإستفاده منها في المجموع الكلي\",IF(AA9=1559,\"درجه تم الإستفاده منها في المجموع الكلي\",IF(AA9=1796,\"درجة تم الإستفاده منها في المجموع الكلي\",IF(AA9=1797,\"درجة تم الإستفاده منها في المجموع الكلي\",IF(AA9=1798,\"درجة تم الإستفاده منها في المجموع الكلي\",IF(AA9=1799,\"درجة تم الإستفاده منها في المجموع الكلي\",IF(AA9=2036,\"درجه تم الإستفادة منها في المجموع الكلي\",IF(AA9=2037,\"درجه تم الإستفادة منها في المجموع الكلي\",IF(AA9=2038,\"درجه تم الإستفادة منها في المجموع الكلي\",IF(AA9=2039,\"درجه تم الإستفادة منها في المجموع الكلي\",\"\")))))))))))),\"\")","v":""}]
[3,502,"طالب3",null,null,null,null,null,null,null,null,null,null,null,null,null,null,null,null,null,null,null,null,null,null,{"$f":"SUM(X13:Y13)","v":0},null,null,null,null,null,null,{"$f":"COUNTIFMultiple(E16:Z16)","v":{"$error":"#NAME?"}}]
[]
[null,null,null,null,null,null,null,null,null,null,null,null,null,null,null,null,null,null,null,null,null,null,null,null,null,null,null,null,null,null,null,null,{"$f":"IFERROR(IF(AA13=1556,4,IF(AA13=1557,3,IF(AA13=1558,2,IF(AA13=1559,1,IF(AA13=1796,4,IF(AA13=1797,3,IF(AA13=1798,2,IF(AA13=1799,1,IF(AA13=2036,4,IF(AA13=2037,3,IF(AA13=2038,2,IF(AA13=2039,1,\"\")))))))))))),\"\")","v":""}]
[null,null,null,null,null,null,null,null,null,null,null,null,null,null,null,null,null,null,null,null,null,null,null,null,null,null,null,null,null,null,null,null,{"$f":"IFERROR(IF(AA13=1556,\"درجه تم الإستفاده منها في المجموع الكلي\",IF(AA13=1557,\"درجه تم الإستفاده منها في المجموع الكلي\",IF(AA13=1558,\"درجه تم الإستفاده منها في المجموع الكلي\",IF(AA13=1559,\"درجه تم الإستفاده منها في المجموع الكلي\",IF(AA13=1796,\"درجة تم الإستفاده منها في المجموع الكلي\",IF(AA13=1797,\"درجة تم الإستفاده منها في المجموع الكلي\",IF(AA13=1798,\"درجة تم الإستفاده منها في المجموع الكلي\",IF(AA13=1799,\"درجة تم الإستفاده منها في المجموع الكلي\",IF(AA13=2036,\"درجه تم الإستفادة منها في المجموع الكلي\",IF(AA13=2037,\"درجه تم الإستفادة منها في المجموع الكلي\",IF(AA13=2038,\"درجه تم الإستفادة منها في المجموع الكلي\",IF(AA13=2039,\"درجه تم الإستفادة منها في المجموع الكلي\",\"\")))))))))))),\"\")","v":""}]
[4,503,"طالب4",null,null,null,null,null,null,null,null,null,null,null,null,null,null,null,null,null,null,null,null,null,null,{"$f":"SUM(X17:Y17)","v":0},null,null,null,null,null,null,{"$f":"COUNTIFMultiple(E20:Z20)","v":{"$error":"#NAME?"}}]
[]
[null,null,null,null,null,null,null,null,null,null,null,null,null,null,null,null,null,null,null,null,null,null,null,null,null,null,null,null,null,null,null,null,{"$f":"IFERROR(IF(AA17=1556,4,IF(AA17=1557,3,IF(AA17=1558,2,IF(AA17=1559,1,IF(AA17=1796,4,IF(AA17=1797,3,IF(AA17=1798,2,IF(AA17=1799,1,IF(AA17=2036,4,IF(AA17=2037,3,IF(AA17=2038,2,IF(AA17=2039,1,\"\")))))))))))),\"\")","v":""}]
[null,null,null,null,null,null,null,null,null,null,null,null,null,null,null,null,null,null,null,null,null,null,null,null,null,null,null,null,null,null,null,null,{"$f":"IFERROR(IF(AA17=1556,\"درجه تم الإستفاده منها في المجموع الكلي\",IF(AA17=1557,\"درجه تم الإستفاده منها في المجموع الكلي\",IF(AA17=1558,\"درجه تم الإستفاده منها في المجموع الكلي\",IF(AA17=1559,\"درجه تم الإستفاده منها في المجموع الكلي\",IF(AA17=1796,\"درجة تم الإستفاده منها في المجموع الكلي\",IF(AA17=1797,\"درجة تم الإستفاده منها في المجموع الكلي\",IF(AA17=1798,\"درجة تم الإستفاده منها في المجموع الكلي\",IF(AA17=1799,\"درجة تم الإستفاده منها في المجموع الكلي\",IF(AA17=2036,\"درجه تم الإستفادة منها في المجموع الكلي\",IF(AA17=2037,\"درجه تم الإستفادة منها في المجموع الكلي\",IF(AA17=2038,\"درجه تم الإستفادة منها في المجموع الكلي\",IF(AA17=2039,\"درجه تم الإستفادة منها في المجموع الكلي\",\"\")))))))))))),\"\")","v":""}]
[5,504,"طالب5",null,null,null,null,null,null,null,null,null,null,null,null,null,null,null,null,null,null,null,null,null,null,{"$f":"SUM(X21:Y21)","v":0},null,null,null,null,null,null,{"$f":"COUNTIFMultiple(E24:Z24)","v":{"$error":"#NAME?"}}]
[]
[null,null,null,null,null,null,null,null,null,null,null,null,null,null,null,null,null,null,null,null,null,null,null,null,null,null,null,null,null,null,null,null,{"$f":"IFERROR(IF(AA21=1556,4,IF(AA21=1557,3,IF(AA21=1558,2,IF(AA21=1559,1,IF(AA21=1796,4,IF(AA21=1797,3,IF(AA21=1798,2,IF(AA21=1799,1,IF(AA21=2036,4,IF(AA21=2037,3,IF(AA21=2038,2,IF(AA21=2039,1,\"\")))))))))))),\"\")","v":""}]
[null,null,null,null,null,null,null,null,null,null,null,null,null,null,null,null,null,null,null,null,null,null,null,null,null,null,null,null,null,null,null,null,{"$f":"IFERROR(IF(AA21=1556,\"درجه تم الإستفاده منها في المجموع الكلي\",IF(AA21=1557,\"درجه تم الإستفاده منها في المجموع الكلي\",IF(AA21=1558,\"درجه تم الإستفاده منها في المجموع الكلي\",IF(AA21=1559,\"درجه تم الإستفاده منها في المجموع الكلي\",IF(AA21=1796,\"درجة تم الإستفاده منها في المجموع الكلي\",IF(AA21=1797,\"درجة تم الإستفاده منها في المجموع الكلي\",IF(AA21=1798,\"درجة تم الإستفاده منها في المجموع الكلي\",IF(AA21=1799,\"درجة تم الإستفاده منها في المجموع الكلي\",IF(AA21=2036,\"درجه تم الإستفادة منها في المجموع الكلي\",IF(AA21=2037,\"درجه تم الإستفادة منها في المجموع الكلي\",IF(AA21=2038,\"درجه تم الإستفادة منها في المجموع الكلي\",IF(AA21=2039,\"درجه تم الإستفادة منها في المجموع الكلي\",\"\")))))))))))),\"\")","v":""}]

{"sheet":"Rsd","index":1,"n_rows":14,"n_cols":24,"rows_kept":14,"cut":false,"hidden":false,"merged":[]}
[]
[]
[]
[]
[]
[]
[null,null,null,null,null,null,null,null,null,"رصدالمواد"]
[]
["م","رقم الجلوس","الاســــــــــــــــــــــــم","مادة1","مادة2","مادة3","مادة4","مادة5","مادة6","مادة7","مادة8","مادة9","مادة10","مادة11","مادة12","مادة13","مادة14","مادة15","مادة16","مادة17","مادة18","مادة19","مادة 20 شفوي","مادة20 تحريري"]
[1,500,"طالب 1",25,26,27,28,29,30,31,32,33,34,35,36,37,38,39,40,41,42,43,44,45]
[2,501,"طالب2"]
[3,502,"طالب3"]
[4,503,"طالب4"]
[5,504,"طالب5"]